fUSD/lending_fUSD_20240117
["ID","MTS","AMOUNT","RATE_DAILY","PERIOD"]
[311841797,1705452648762,-761.9585976,0.00022998,3]
[311841798,1705452648782,-664.7155546,0.00022998,3]
[311841799,1705452648818,-946.39860913,0.00022998,3]
[311841800,1705452648923,-995.6741104,0.00022998,3]
[311841801,1705452648941,-1576.350974,0.00022998,3]
[311841802,1705452648966,-421.78588728,0.00022998,3]
[311841803,1705452648997,-452.64,0.00022998,3]
[311841804,1705452650437,-4146.04723933,0.00022998,3]
[311841805,1705452650456,-37822.28768629,0.00022998,2]
[311841806,1705452650491,-527.84057417,0.00022998,2]
[311841807,1705452651072,-1939.745,0.00022998,2]
[311841808,1705452651102,-4279.62601539,0.00022998,2]
[311841809,1705452651157,-513.95219135,0.00022998,2]
[311841810,1705452651178,-427.78380865,0.00022998,2]
[311841811,1705452653161,-249.00218955,0.00022998,2]
[311841812,1705452653188,-1370.6501691,0.00022998,2]
[311841813,1705452653214,-541.0,0.00022999,2]
[311841814,1705452653234,-201.06409086,0.00022999,2]
[311841815,1705452653258,-150.01,0.00022999,2]
[311841816,1705452653280,-3295.05728793,0.00022999,2]
[311841817,1705452653298,-4438.57886289,0.00022999,2]
[311841818,1705452655594,-1747.93007092,0.00022779,2]
[311841819,1705452655955,-770.43149471,0.00022779,2]
[311841820,1705452655985,-3873.86999999,0.00022779,2]
[311841821,1705452656015,-290.92176094,0.00022779,2]
[311841822,1705452827677,410.29,0.00019916,2]
[311841823,1705452849122,820.999999,0.0002,2]
[311841824,1705452940683,515.24,0.00021785,2]
[311841826,1705453041315,597.72,0.00021759,2]
[311841827,1705453060465,172.93,0.00021755,2]
[311841830,1705453260879,389.77,0.00019826,2]
[311841833,1705453414341,204.0,0.00021477,2]
[311841834,1705453414449,587.8,0.00021686,2]
[311841835,1705453491983,557.87,0.00021691,2]
[311841836,1705453529484,214.96,0.0002169,2]
[311841837,1705453529685,214.96,0.00021805,2]
[311841838,1705453530111,214.96,0.00021919,2]
[311841839,1705453726792,370.28,0.00019764,2]
[311841843,1705453831756,-155.0,0.00022027,2]
[311841844,1705453831766,-370.28,0.00022028,2]
[311841845,1705453831775,-214.96,0.00022033,2]
[311841846,1705453831784,-214.96,0.00022147,2]
[311841847,1705453831794,-204.0,0.00022152,2]
[311841848,1705453831803,-214.96,0.00022261,2]
[311841849,1705453831813,-214.96,0.00022375,2]
[311841850,1705453831822,-246.60959394,0.00022475,2]
[311841851,1705453831831,-172.93,0.0002248,2]
[311841852,1705453831840,-214.96,0.0002249,2]
[311841853,1705453831849,-851.56,0.00022514,2]
[311841855,1705453831859,-150.0,0.00022542,2]
[311841857,1705453831868,-150.0,0.00022562,2]
[311841858,1705453831877,-150.0,0.00022568,2]
[311841859,1705453831887,-150.0,0.00022569,2]
[311841860,1705453831897,-150.0,0.00022584,2]
[311841861,1705453831906,-150.0,0.00022589,2]
[311841862,1705453831917,-150.0,0.00022593,2]
[311841863,1705453831926,-1000.0,0.000226,2]
[311841864,1705453831936,-1000.0,0.000226,2]
[311841865,1705453831946,-214.96,0.00022604,2]
[311841866,1705453831955,-150.0,0.0002261,2]
[311841867,1705453831965,-150.0,0.00022614,2]
[311841868,1705453831975,-150.0,0.00022625,2]
[311841869,1705453831984,-150.0,0.00022629,2]
[311841870,1705453831994,-150.0,0.00022638,2]
[311841871,1705453832003,-150.0,0.00022639,2]
[311841872,1705453832012,-300.0,0.00022639,2]
[311841873,1705453832021,-150.0,0.00022664,2]
[311841874,1705453832031,-150.0,0.00022665,2]
[311841875,1705453832041,-557.87,0.0002267,2]
[311841876,1705453832051,-150.0,0.0002267,2]
[311841877,1705453832060,-155.8554807,0.00022672,2]
[311841878,1705453832069,-150.0,0.00022675,2]
[311841879,1705453832078,-414.0892,0.00022679,2]
[311841880,1705453832087,-67454.627,0.00022679,2]
[311841881,1705453832097,-1711.80345488,0.00022679,2]
[311841882,1705453832109,-384.38357155,0.00022679,2]
[311841883,1705453832121,-403.81297357,0.00022679,2]
[311841884,1705453832131,-115.94702643,0.00022684,2]
[311841885,1705453832143,-34.05297357,0.00022684,2]
[311841886,1705453832151,-150.0,0.00022686,2]
[311841887,1705453832161,-150.0,0.00022697,2]
[311841888,1705453832170,-150.0,0.00022699,2]
[311841889,1705453832179,-150.0,0.000227,2]
[311841890,1705453832188,-150.0,0.000227,2]
[311841891,1705453832197,-1000.0,0.000227,2]
[311841892,1705453832207,-150.0,0.00022715,2]
[311841893,1705453832216,-214.96,0.00022718,2]
[311841894,1705453832226,-150.0,0.00022719,2]
[311841895,1705453832235,-150.0,0.00022723,2]
[311841896,1705453832244,-150.0,0.00022733,2]
[311841897,1705453832253,-150.0,0.00022735,2]
[311841898,1705453832262,-150.0,0.00022737,2]
[311841899,1705453832271,-300.0,0.00022739,2]
[311841900,1705453832280,-150.0,0.0002274,2]
[311841901,1705453832291,-150.0,0.00022743,2]
[311841902,1705453832300,-150.0,0.00022757,2]
[311841903,1705453832309,-150.0,0.00022761,2]
[311841904,1705453832318,-160.0,0.00022766,2]
[311841905,1705453832327,-397.0,0.0002277,2]
[311841906,1705453832336,-723.0960924,0.0002277,3]
[311841907,1705453832345,-155.0,0.00022777,2]
[311841908,1705453832355,-1911.90313155,0.00022777,2]
[311841909,1705453832364,-236.17727712,0.00022777,2]
[311841910,1705453832373,-234.89781562,0.00022777,2]
[311841911,1705453832382,-256.98504056,0.00022777,2]
[311841912,1705453832391,-2506.28525538,0.00022777,2]
[311841913,1705453832400,-47776.2153093,0.00022777,2]
[311841914,1705453832428,-321.90484521,0.00022777,2]
[311841915,1705453832440,-562.4996314,0.00022777,2]
[311841916,1705453832459,-252.7154311,0.00022777,2]
[311841919,1705453837558,-8900.62740531,0.00022777,2]
[311841920,1705453837567,-3595.96644229,0.00022779,2]
[311841921,1705453837613,-89720.88023115,0.00022779,2]
[311841922,1705453837623,-150.0,0.00022795,2]
[311841923,1705453837633,-1500.0,0.00022798,2]
[311841924,1705453837642,-150.0,0.00022808,2]
[311841925,1705453837652,-150.0,0.00022813,2]
[311841926,1705453837663,-500.0,0.00022815,2]
[311841927,1705453837672,-200.0,0.00022815,2]
[311841928,1705453837682,-200.0,0.00022815,2]
[311841929,1705453837691,-500.0,0.00022815,2]
[311841930,1705453837701,-500.0,0.00022815,2]
[311841931,1705453837711,-500.0,0.00022815,2]
[311841932,1705453837721,-500.0,0.00022815,2]
[311841933,1705453837732,-200.0,0.00022815,2]
[311841934,1705453837741,-200.0,0.00022815,2]
[311841935,1705453837750,-500.0,0.00022815,2]
[311841936,1705453837760,-500.0,0.00022815,2]
[311841937,1705453837770,-200.0,0.00022815,2]
[311841938,1705453837781,-200.0,0.00022815,2]
[311841939,1705453837792,-500.0,0.00022815,2]
[311841940,1705453837803,-500.0,0.00022815,2]
[311841941,1705453837814,-500.0,0.00022815,2]
[311841942,1705453837825,-200.0,0.00022815,2]
[311841943,1705453837834,-200.0,0.00022815,2]
[311841944,1705453837843,-200.0,0.00022815,2]
[311841945,1705453837852,-200.0,0.00022816,2]
[311841946,1705453837863,-800.0,0.00022816,2]
[311841947,1705453837874,-755.11832961,0.00022819,2]
[311841948,1705453837915,-305.43648328,0.00022819,2]
[311841949,1705453837925,-150.0,0.0002282,2]
[311841950,1705453837934,-214.96,0.00022832,2]
[311841951,1705453837944,-150.0,0.00022841,2]
[311841953,1705453837953,-150.0,0.00022865,2]
[311841955,1705453837962,-5173.66,0.00022877,2]
[311841957,1705453837972,-5173.66,0.00022877,2]
[311841959,1705453837980,-616.15194642,0.00022877,2]
[311841965,1705453838029,-2861.16401675,0.00022877,2]
[311841972,1705453838087,-1696.34403683,0.00022877,2]
[311841974,1705453838097,-5173.66,0.00022877,2]
[311841976,1705453838108,-5173.66,0.00022877,2]
[311841978,1705453838117,-5173.66,0.00022877,2]
[311841980,1705453838127,-5173.66,0.00022877,2]
[311841982,1705453838138,-5173.66,0.00022877,2]
[311841984,1705453838148,-5173.66,0.00022877,2]
[311841985,1705453838158,-5173.66,0.00022877,2]
[311841987,1705453838168,-5173.66,0.00022877,2]
[311841990,1705453838178,-5173.66,0.00022877,2]
[311841992,1705453838187,-5173.66,0.00022877,2]
[311841993,1705453838197,-5173.66,0.00022877,2]
[311841995,1705453838206,-5173.66,0.00022877,2]
[311841997,1705453838215,-5173.66,0.00022877,2]
[311841999,1705453838224,-5173.66,0.00022877,2]
[311842001,1705453838233,-1720.37169648,0.00022877,2]
[311842004,1705453838244,-1478.00002489,0.00022877,2]
[311842189,1705453839987,-476.2785113,0.00022877,2]
[311842424,1705453842533,-1499.00976733,0.00022877,2]
[311842425,1705453842544,-5173.66,0.00022877,2]
[311842426,1705453842555,-5173.66,0.00022877,2]
[311842427,1705453842565,-4682.97938208,0.00022877,2]
[311842429,1705453842642,-490.68061792,0.00022877,2]
[311842430,1705453842651,-4289.11214234,0.00022877,2]
[311842440,1705453842753,-884.54785766,0.00022877,2]
[311842443,1705453842767,-5173.66,0.00022877,2]
[311842445,1705453842776,-3263.30083014,0.00022877,2]
[311842447,1705453842789,-305.0,0.00022877,2]
[311842552,1705453845934,-150.0,0.00022739,2]
[311842553,1705453845945,-1605.43461928,0.00022877,2]
[311842554,1705453845954,-150.0,0.00022882,2]
[311842556,1705453845965,-300.0,0.00022883,2]
[311842558,1705453845974,-1128.32,0.00022898,2]
[311842559,1705453845983,-2592.96921669,0.00022899,2]
[311842561,1705453846002,-434.46738331,0.00022899,2]
[311842562,1705453846013,-78.17253129,0.00022899,2]
[311842563,1705453846026,-409.07734409,0.00022899,2]
[311842564,1705453846060,-257.5496954,0.00022899,2]
[311842565,1705453846072,-4255.20042922,0.00022899,2]
[311842566,1705453846082,-171.01942967,0.000229,2]
[311842567,1705453846092,-6793.8119161,0.000229,2]
[311842568,1705453846102,-192.72616874,0.000229,2]
[311842569,1705453846112,-444.2776662,0.000229,2]
[311842570,1705453846123,-204.0393153,0.000229,2]
[311842571,1705453846133,-150.0,0.00022914,2]
[311842572,1705453846143,-150.0,0.0002292,2]
[311842573,1705453846154,-150.0,0.00022922,2]
[311842574,1705453846164,-150.0,0.00022935,2]
[311842575,1705453846173,-214.96,0.00022946,2]
[311842576,1705453846183,-150.0,0.00022958,2]
[311842577,1705453846194,-150.0,0.00022962,2]
[311842578,1705453846204,-91561.56715429,0.0002298,2]
[311842579,1705453846215,-1128.32,0.0002298,2]
[311842580,1705453846225,-3295.05728793,0.00022998,2]
[311842581,1705453846235,-150.01,0.00022998,2]
[311842582,1705453846246,-7814.66944023,0.00022998,3]
[311842583,1705453846256,-1060.1682999,0.00022998,2]
[311842584,1705453846266,-35607.1823015,0.00022998,2]
[311842585,1705453846277,-2179.2981373,0.00022998,2]
[311842586,1705453846287,-998.4425,0.00022999,2]
[311842587,1705453846298,-363453.9517739,0.00023,3]
[311842588,1705453846329,-690.0,0.00023,3]
[311842589,1705453846367,-3588.70815769,0.00023,3]
[311842593,1705454292174,351.73,0.00019976,2]
[311842594,1705454368416,9887.83,0.00021854,2]
[311842595,1705454379024,470.24,0.00021854,2]
[311842596,1705454493948,204.0,0.00021872,2]
[311842597,1705454497131,483.48,0.00021845,2]
[311842599,1705454565408,183.85768691,0.00021925,2]
[311842605,1705454764923,334.14,0.00019953,2]
[311842609,1705454814702,623.8,0.00021842,2]
[311842626,1705454929306,157.65,0.00021798,2]
[311842629,1705455010668,176.25216748,0.00021798,2]
[311842630,1705455016884,451.24,0.00021806,2]
[311842638,1705455031704,-155.0,0.00022014,2]
[311842640,1705455031713,-167.31,0.00022028,2]
[311842641,1705455031722,-157.52,0.00022139,2]
[311842642,1705455031731,-334.14,0.00022217,2]
[311842643,1705455031740,-157.52,0.00022436,2]
[311842644,1705455031750,-1704.70178594,0.000225,2]
[311842645,1705455031759,-161.95122087,0.00022569,2]
[311842646,1705455031768,-2131.4519,0.00022634,2]
[311842647,1705455031778,-226.14,0.00022668,2]
[311842648,1705455031787,-5759.19,0.00022668,2]
[311842649,1705455031796,-2118.56405589,0.00022669,2]
[311842650,1705455031806,-376.29196793,0.00022677,2]
[311842651,1705455031818,-581.48502557,0.00022677,2]
[311842652,1705455031827,-161.46960289,0.00022677,2]
[311842653,1705455031836,-1469.03061238,0.00022677,2]
[311842654,1705455031846,-2951.77663867,0.00022678,2]
[311842655,1705455031857,-2418.86640071,0.00022678,2]
[311842656,1705455031866,-104.59078915,0.00022678,2]
[311842657,1705455031879,-3709.18627221,0.00022678,2]
[311842658,1705455031889,-74.46947729,0.00022679,2]
[311842659,1705455031905,-474.01370317,0.00022679,2]
[311842660,1705455031918,-40666.25364195,0.00022679,2]
[311842661,1705455031930,-299.42368159,0.00022679,2]
[311842662,1705455033526,-523.73846155,0.00022013,2]
[311842663,1705455033535,-431.61928049,0.00022679,2]
[311842664,1705455033547,-3800.0,0.00022679,2]
[311842665,1705455033558,-431.71184903,0.00022679,2]
[311842666,1705455033581,-383.1988361,0.00022679,2]
[311842675,1705455037696,-37580.33403038,0.00022679,2]
[311842676,1705455037706,-100000.0,0.00022679,2]
[311842677,1705455037715,-204.0,0.00022688,2]
[311842678,1705455037725,-157.52,0.00022734,2]
[311842679,1705455037735,-1500.0,0.00022734,2]
[311842680,1705455037745,-755.11832961,0.00022743,2]
[311842681,1705455037755,-160.0,0.00022766,2]
[311842682,1705455037765,-220.91487057,0.00022768,4]
[311842683,1705455037776,-451.24,0.00022784,2]
[311842684,1705455037786,-300.0,0.00022807,2]
[311842685,1705455037796,-200.0,0.00022814,2]
[311842686,1705455037807,-800.0,0.00022814,2]
[311842687,1705455037821,-200.0,0.00022815,2]
[311842688,1705455037830,-200.0,0.00022815,2]
[311842689,1705455037839,-800.0,0.00022815,2]
[311842690,1705455037849,-213.734372,0.00022815,2]
[311842691,1705455037861,-200.0,0.00022815,2]
[311842692,1705455037870,-200.0,0.00022815,2]
[311842693,1705455037880,-200.0,0.00022815,2]
[311842694,1705455037892,-200.0,0.00022815,2]
[311842695,1705455037901,-500.0,0.00022815,2]
[311842696,1705455037913,-200.0,0.00022815,2]
[311842697,1705455037924,-200.0,0.00022815,2]
[311842698,1705455037938,-200.0,0.00022815,2]
[311842699,1705455037949,-5000.0,0.000229,2]
[311842700,1705455037959,-161.95122086,0.000229,2]
[311842701,1705455037969,-171.01942967,0.000229,2]
[311842702,1705455037979,-6227.66092311,0.000229,2]
[311842703,1705455037989,-890.70402151,0.000229,2]
[311842704,1705455038002,-1961.15369994,0.000229,2]
[311842705,1705455038012,-204.03931529,0.000229,2]
[311842706,1705455038022,-1418.2407483,0.000229,2]
[311842707,1705455038032,-1455.8,0.000229,2]
[311842708,1705455038041,-150.0,0.00022911,2]
[311842709,1705455038051,-150.0,0.00022928,2]
[311842710,1705455038061,-150.0,0.00022976,2]
[311842711,1705455038071,-1648.06580719,0.00022997,3]
[311842712,1705455038080,-1034.3,0.00022997,2]
[311842713,1705455038090,-150.01,0.00022998,2]
[311842714,1705455038099,-3295.05728793,0.00022998,2]
[311842715,1705455038110,-1489.6180329,0.00022998,2]
[311842716,1705455038120,-21550.4461339,0.00022998,2]
[311842717,1705455038130,-162.6175793,0.00022998,2]
[311842718,1705455038140,-647.5980553,0.00022998,2]
[311842719,1705455038150,-67197.6803648,0.00023,3]
[311842720,1705455038195,-103177.77519943,0.00023,3]
[311842721,1705455038208,-306.64244482,0.00023,3]
[311842722,1705455038911,-17244.17923057,0.00023,3]
[311842732,1705455040650,-981.94036338,0.00023,3]
[311842733,1705455040697,-6119.44966833,0.00023,3]
[311842734,1705455040711,-312.52609998,0.00023,3]
[311842735,1705455040761,-68563.30675459,0.00023,3]
[311842743,1705455040949,-6133.0700043,0.00023,3]
[311842773,1705455042686,-3197.27146276,0.00023,3]
[311842775,1705455042697,-366.86374324,0.00023,3]
[311842777,1705455042709,-465.15169898,0.00023,3]
[311842779,1705455042797,-2916.59812445,0.00023,3]
[311842780,1705455042930,-2306.17497154,0.00023,3]
[311842781,1705455042942,-6463.30901227,0.00023,3]
[311842782,1705455042954,-1476.31983728,0.00023,3]
[311842783,1705455042967,-2750.44381422,0.00023,3]
[311842784,1705455042993,-309.79799991,0.00023,3]
[311842788,1705455043073,-1432.7033759,0.00023,3]
[311842811,1705455045833,-1072.49571098,0.00022998,2]
[311842812,1705455045884,-1510.54566232,0.00022998,2]
[311842813,1705455045988,-712.63016055,0.00022998,2]
[311842814,1705455046004,-177.97532206,0.00022999,2]
[311842815,1705455046016,-624.17171422,0.00022999,2]
[311842816,1705455046026,-1251.17000862,0.00023,3]
[311842817,1705455046037,-5258.76787947,0.00023,3]
[311842818,1705455048283,255.10458462,0.00021798,2]
[311842819,1705455065186,161.73433942,0.00020698,2]
[311842822,1705455070974,176.10953558,0.00021798,2]
[311842823,1705455085296,585.24580243,0.00021848,2]
[311842829,1705455166399,16345.53,0.0003,90]
[311842830,1705455203815,3708.47312282,0.0003,90]
[311842831,1705455211438,335.53,0.00020114,2]
[311842832,1705455213238,1270.05687718,0.0003,120]
[311842833,1705455214069,205.0,0.00021688,2]
[311842834,1705455218124,3885.9956,0.00022,2]
[311842835,1705455229935,8729.94312282,0.0003,120]
[311842836,1705455229958,7577.01687718,0.0003,120]
[311842837,1705455245776,1607.51,0.0003,120]
[311842838,1705455282380,155.0,0.00021999,2]
[311842839,1705455288218,500.96,0.00021968,2]
[311842840,1705455303682,203.00002,0.00021688,2]
[311842841,1705455364881,155.0,0.00021999,2]
[311842842,1705455416303,160.29,0.00021964,2]
[311842843,1705455439393,155.0,0.00021999,2]
[311842844,1705455519895,155.0,0.00021999,2]
[311842845,1705455579435,511.03,0.00021912,2]
[311842846,1705455593001,500.0,0.00020274,2]
[311842847,1705455593357,500.0,0.00021298,2]
[311842848,1705455655334,318.75,0.00019926,2]
[311842849,1705455671998,6913.53,0.00021835,2]
[311842850,1705455934629,205.0,0.00021604,2]
[311842851,1705455953656,1000.0,0.00021838,2]
[311842852,1705456030834,476.96,0.00021836,2]
[311842853,1705456057565,168.2,0.00021992,2]
[311842861,1705456176142,302.81,0.0001991,2]
[311842878,1705456231933,-157.52,0.00022058,2]
[311842879,1705456231943,-161.84,0.00022074,2]
[311842880,1705456231952,-302.81,0.00022174,2]
[311842881,1705456231962,-160.29,0.00022238,2]
[311842882,1705456231971,-168.2,0.00022278,2]
[311842883,1705456231981,-500.0,0.00022322,7]
[311842884,1705456231990,-71.7481413,0.00022411,2]
[311842885,1705456232210,-78.2518587,0.00022411,2]
[311842887,1705456232221,-157.52,0.00022435,2]
[311842889,1705456232231,-170.77,0.00022436,2]
[311842890,1705456232241,-160.29,0.00022513,2]
[311842891,1705456232253,-168.2,0.00022565,2]
[311842892,1705456232264,-714.82,0.00022567,2]
[311842893,1705456232275,-3124.0598,0.00022579,2]
[311842894,1705456232285,-183.6372643,0.00022599,2]
[311842896,1705456232296,-300.0,0.00022699,2]
[311842898,1705456232306,-1009.25724893,0.000227,2]
[311842902,1705456232336,-7126.37615353,0.000227,2]
[311842904,1705456232347,-251.58,0.00022787,2]
[311842906,1705456232357,-160.29,0.00022787,2]
[311842908,1705456232368,-1702.4243,0.000228,2]
[311842910,1705456232382,-157.52,0.00022812,2]
[311842912,1705456232393,-476.96,0.00022814,2]
[311842914,1705456232402,-500.0,0.00022815,2]
[311842916,1705456232410,-500.0,0.00022815,2]
[311842918,1705456232420,-500.0,0.00022815,2]
[311842919,1705456232430,-500.0,0.00022815,2]
[311842920,1705456232442,-500.0,0.00022815,2]
[311842921,1705456232453,-500.0,0.00022815,2]
[311842922,1705456232462,-500.0,0.00022815,2]
[311842923,1705456232471,-500.0,0.00022815,2]
[311842924,1705456232480,-500.0,0.00022815,2]
[311842925,1705456232489,-500.0,0.00022816,2]
[311842926,1705456232499,-168.2,0.00022851,2]
[311842927,1705456232508,-489.84119719,0.00022898,2]
[311842928,1705456232519,-223.44801291,0.00022898,2]
[311842929,1705456232529,-155.20100755,0.00022898,2]
[311842930,1705456232539,-156.50475108,0.00022898,2]
[311842931,1705456232549,-417.4552,0.00022899,2]
[311842932,1705456232558,-1462.9387,0.000229,2]
[311842933,1705456232570,-84902.75366453,0.000229,2]
[311842934,1705456232585,-15097.24633547,0.000229,2]
[311842935,1705456232597,-1091.1704,0.000229,2]
[311842936,1705456232607,-160.0,0.000229,2]
[311842937,1705456232618,-5000.0,0.000229,2]
[311842938,1705456232628,-20538.44688364,0.000229,2]
[311842939,1705456232644,-16853.74208891,0.000229,2]
[311842940,1705456232656,-534.17669734,0.000229,2]
[311842941,1705456232672,-428.50808,0.000229,2]
[311842942,1705456232698,-531.60879351,0.000229,2]
[311842974,1705456238268,-946.43478153,0.000229,2]
[311842975,1705456238280,-356.66084931,0.000229,2]
[311842977,1705456238291,-785.44914221,0.000229,2]
[311842979,1705456238303,-29679.23169539,0.000229,2]
[311842981,1705456238314,-2039.91657473,0.000229,2]
[311842983,1705456238325,-6420.88416689,0.000229,2]
[311842987,1705456238356,-635.96349285,0.000229,2]
[311842990,1705456238367,-12650.1003,0.000229,2]
[311842993,1705456238386,-67128.07981969,0.000229,2]
[311842995,1705456238396,-174.45960937,0.000229,2]
[311842996,1705456238405,-596.06127222,0.000229,2]
[311842997,1705456238414,-151.15477322,0.000229,2]
[311842999,1705456238423,-959.4832334,0.000229,2]
[311843001,1705456238432,-206.38249896,0.000229,2]
[311843002,1705456238442,-506.71751846,0.000229,2]
[311843004,1705456238451,-299.11681747,0.000229,2]
[311843005,1705456238459,-2034.84025467,0.00022998,3]
[311843007,1705456238468,-2062.51490241,0.00022998,2]
[311843008,1705456238477,-616.53193081,0.00022998,2]
[311843010,1705456238486,-551.75797949,0.00022998,2]
[311843012,1705456238496,-1283.48120239,0.00022998,2]
[311843013,1705456238506,-548.46850896,0.00022998,2]
[311843015,1705456238515,-3107.73661881,0.00022998,2]
[311843017,1705456238524,-150.01,0.00022998,2]
[311843018,1705456238533,-1056.9786075,0.00022998,2]
[311843020,1705456238543,-17431.9679531,0.00022998,2]
[311843022,1705456238552,-525.9686268,0.00022998,2]
[311843023,1705456238561,-3941.1486373,0.00022999,2]
[311843025,1705456238573,-594.46482529,0.00022999,2]
[311843027,1705456238584,-342.79972744,0.00022999,2]
[311843029,1705456238596,-287.10992326,0.00022999,2]
[311843030,1705456238605,-539.0,0.00023,2]
[311843032,1705456238614,-171525.95684102,0.00023,3]
[311843034,1705456238637,-9158.74067928,0.00023,3]
[311843036,1705456238649,-68585.17568487,0.00023,3]
[311843038,1705456238660,-12127.37555304,0.00023,3]
[311843191,1705456240257,-29944.3663729,0.00023,3]
[311843202,1705456240324,-321.03484088,0.00023,3]
[311843255,1705456240859,-541.05532265,0.00023,3]
[311843266,1705456240950,-507.76928861,0.00023,3]
[311843268,1705456240962,-413.00489576,0.00023,3]
[311843270,1705456240973,-1477.63100204,0.00023,3]
[311843272,1705456240985,-312.14320097,0.00023,3]
[311843276,1705456241010,-5526.78802572,0.00023,3]
[311843278,1705456241022,-320.7376266,0.00023,3]
[311843334,1705456241736,-15685.42707926,0.00023,3]
[311843454,1705456242811,-775.58890594,0.00023,3]
[311843457,1705456242823,-1449.54671138,0.00023,3]
[311843460,1705456242834,-258.20269986,0.00023,3]
[311843463,1705456242846,-696.05985471,0.00023,3]
[311843481,1705456242949,-22722.57287506,0.00023,3]
[311843483,1705456242960,-293.33957425,0.00023,3]
[311843490,1705456243015,-524.28678313,0.00023,3]
[311843494,1705456243046,-1515.01903168,0.00023,3]
[311843497,1705456243059,-1575.30409852,0.00023,3]
[311843500,1705456243080,-680.14794851,0.00023,3]
[311843811,1705456245953,-150.01,0.00022999,2]
[311843814,1705456245962,-1553.86830941,0.00022999,2]
[311843817,1705456245971,-13681.06669059,0.00023,3]
[311843819,1705456245986,-936.13300547,0.00023,3]
[311843841,1705456246083,-312.03996015,0.00023,3]
[311843846,1705456246106,-610.9022079,0.00023,3]
[311843859,1705456246162,-1992.01801662,0.00023,3]
[311843874,1705456246225,-682.9234441,0.00023,3]
[311843877,1705456246237,-388.95084273,0.00023,3]
[311843880,1705456246248,-3214.0000025,0.00023,3]
[311843883,1705456246261,-1912.08511341,0.00023,3]
[311844922,1705456612386,2729.60795047,0.00021981,2]
[311844923,1705456612418,18604.89204953,0.00021981,2]
[311844924,1705456618975,523.73846155,0.0002198,2]
[311844925,1705456646950,15011.79184922,0.00025,15]
[311844926,1705456654005,205.0,0.00021624,2]
[311844927,1705456668179,200.0,0.00021973,2]
[311844928,1705456668787,321.07,0.00020055,2]
[311844929,1705456730653,300.0,0.0003,120]
[311844930,1705456756296,250.0,0.0002196,2]
[311844931,1705456762804,413.9,0.00021968,2]
[311844932,1705457095497,482.57,0.00021904,2]
[311844933,1705457148609,305.01,0.00020016,2]
[311844934,1705457163331,156.33,0.00021922,2]
[311844935,1705457290747,3141.98,0.00021872,2]
[311844936,1705457312686,200.0,0.00021886,2]
[311844937,1705457338078,506.97875413,0.000215,2]
[311844938,1705457348879,500.0,0.000215,2]
[311844943,1705457374204,205.0,0.00021756,2]
[311844963,1705457432041,-169.79,0.00022006,2]
[311844965,1705457432052,-800.0,0.00022008,2]
[311844967,1705457432062,-168.2,0.00022126,2]
[311844969,1705457432071,-156.33,0.00022142,2]
[311844970,1705457432080,-163.66,0.0002218,2]
[311844971,1705457432090,-183.4826822,0.00022219,2]
[311844972,1705457432099,-305.01,0.00022279,2]
[311844973,1705457432108,-156.33,0.00022361,2]
[311844974,1705457432118,-169.79,0.00022446,2]
[311844975,1705457432127,-392.0,0.00022542,2]
[311844976,1705457432136,-156.33,0.0002258,2]
[311844977,1705457432146,-767.45736101,0.00022651,2]
[311844978,1705457432156,-150.0,0.00022773,2]
[311844979,1705457432165,-7588.89714731,0.00022774,2]
[311844980,1705457432175,-499.99,0.00022774,2]